fUST/lending_fUST_20251014
["ID","MTS","AMOUNT","RATE_DAILY","PERIOD"]
[391144965,1760393459437,-1923.55,0.00024657,2]
[391144966,1760393459447,-500.0,0.00024657,2]
[391144967,1760393459457,-3041.58,0.00024657,2]
[391144968,1760393459466,-500.0,0.00024657,2]
[391144969,1760393459476,-1923.55,0.00024657,2]
[391144970,1760393459486,-1745.45017058,0.00024657,2]
[391144971,1760393459499,-1296.12982942,0.00024657,2]
[391144972,1760393459509,-383.96301422,0.00024657,2]
[391144973,1760393459519,-86.66922166,0.00024657,2]
[391144980,1760394142793,1569.735,0.00029,120]
[391145002,1760394398460,47.23739337,0.00029,120]
[391145003,1760394398484,952.76260663,0.00029,120]
[391145004,1760394434778,1000.0,0.00029,120]
[391145013,1760394515880,301.99999909,0.0002,120]
[391145014,1760394531039,329.598886,0.00013699,2]
[391145015,1760394531254,329.598886,0.00020187,2]
[391145033,1760394631937,-580.0,0.00021999,2]
[391145035,1760394631947,-300.0,0.00021999,2]
[391145037,1760394631957,-300.0,0.00021999,2]
[391145039,1760394631966,-300.0,0.00021999,2]
[391145041,1760394631976,-300.0,0.00021999,2]
[391145043,1760394631985,-294.87097782,0.00021999,2]
[391145046,1760394631997,-714.17027373,0.00021999,2]
[391145048,1760394632008,-190.95874845,0.00021999,2]
[391145049,1760394632018,-300.0,0.00021999,2]
[391145052,1760394632029,-42128.04125155,0.00022,2]
[391145055,1760394632048,-5780.38549299,0.00022,2]
[391145057,1760394632059,-2091.57325546,0.00022,2]
[391145059,1760394632068,-566.66,0.0002259,10]
[391145061,1760394632078,-204.71411795,0.00022598,2]
[391145063,1760394632087,-6382.55747478,0.000226,2]
[391145065,1760394632096,-14298.8055893,0.000226,2]
[391145068,1760394632107,-1680.06780001,0.000226,2]
[391145094,1760394638071,-34021.12661069,0.000226,2]
[391145095,1760394638080,-387.12456202,0.00022689,2]
[391145096,1760394638090,-370000.0,0.0002269,2]
[391145097,1760394638099,-28113.76,0.000227,7]
[391145098,1760394638108,-300.0,0.00023143,20]
[391145099,1760394638117,-300.0,0.00023143,20]
[391145100,1760394638126,-300.0,0.00023143,20]
[391145101,1760394638135,-300.0,0.00023143,20]
[391145102,1760394638144,-300.0,0.00023143,20]
[391145103,1760394638153,-300.0,0.00023143,20]
[391145104,1760394638163,-300.0,0.00023143,20]
[391145105,1760394638172,-300.0,0.00023143,20]
[391145106,1760394638181,-300.0,0.00023143,20]
[391145107,1760394638190,-300.0,0.00023143,20]
[391145108,1760394638200,-300.0,0.00023143,20]
[391145109,1760394638209,-300.0,0.00023143,20]
[391145110,1760394638218,-300.0,0.00023143,20]
[391145111,1760394638227,-300.0,0.00023143,20]
[391145112,1760394638236,-300.0,0.00023143,20]
[391145113,1760394638246,-600.0,0.00023143,20]
[391145114,1760394638255,-235.42123564,0.00023198,2]
[391145115,1760394638264,-323.42437592,0.00023403,2]
[391145116,1760394638273,-295.0,0.00023566,2]
[391145117,1760394638283,-6382.55747476,0.00023703,2]
[391145118,1760394638292,-368.0,0.00023793,2]
[391145119,1760394638301,-266.12835334,0.00023798,2]
[391145120,1760394638310,-420.0,0.00023906,2]
[391145121,1760394638319,-5284.03202824,0.00024,60]
[391145122,1760394638328,-1390.0,0.00024018,2]
[391145123,1760394638337,-150.0,0.00024102,2]
[391145124,1760394638345,-22920.19273993,0.00024142,2]
[391145125,1760394638357,-11186.59868844,0.00024142,2]
[391145126,1760394638368,-118112.92684986,0.00024142,2]
[391145127,1760394638376,-160.0,0.000242,2]
[391145128,1760394638386,-784.011548,0.00024245,2]
[391145129,1760394638395,-296.83547103,0.00024398,2]
[391145130,1760394638404,-243.641,0.00024474,7]
[391145131,1760394638413,-179.81511434,0.00024474,7]
[391145132,1760394638423,-500.0,0.00024543,2]
[391145133,1760394638432,-5888.0,0.00024543,2]
[391145134,1760394638441,-160.0,0.00024546,2]
[391145135,1760394638452,-28664.73917222,0.00024557,3]
[391145136,1760394638461,-8572.53910824,0.00024557,2]
[391145137,1760394638470,-6313.4779846,0.00024581,2]
[391145138,1760394638479,-720.025068,0.00024581,2]
[391145139,1760394638488,-2402.3831879,0.00024581,2]
[391145140,1760394638498,-250.0,0.00024642,2]
[391145141,1760394638507,-250.0,0.00024642,2]
[391145142,1760394638516,-12953.85801077,0.00024642,2]
[391145143,1760394638526,-200.54097755,0.00024656,2]
[391145144,1760394638535,-500.63317438,0.00024657,2]
[391145145,1760394638544,-503.42673383,0.00024657,2]
[391145146,1760394638554,-500.0,0.00024657,2]
[391145147,1760394638563,-500.0,0.00024657,2]
[391145148,1760394638572,-500.0,0.00024657,2]
[391145149,1760394638581,-500.0,0.00024657,2]
[391145151,1760394638591,-500.0,0.00024657,2]
[391145152,1760394638600,-500.0,0.00024657,2]
[391145153,1760394638609,-500.0,0.00024657,2]
[391145154,1760394638618,-500.0,0.00024657,2]
[391145155,1760394638628,-500.0,0.00024657,2]
[391145156,1760394638637,-500.0,0.00024657,2]
[391145157,1760394638646,-500.0,0.00024657,2]
[391145158,1760394638655,-500.0,0.00024657,2]
[391145159,1760394638668,-500.0,0.00024657,2]
[391145160,1760394638678,-500.0,0.00024657,2]
[391145161,1760394638687,-500.0,0.00024657,2]
[391145162,1760394638696,-500.0,0.00024657,2]
[391145163,1760394638706,-500.0,0.00024657,2]
[391145164,1760394638715,-500.0,0.00024657,2]
[391145165,1760394638724,-500.0,0.00024657,2]
[391145166,1760394638733,-500.0,0.00024657,2]
[391145167,1760394638743,-500.0,0.00024657,2]
[391145168,1760394638753,-500.0,0.00024657,2]
[391145169,1760394638762,-500.0,0.00024657,2]
[391145170,1760394638771,-500.0,0.00024657,2]
[391145171,1760394638780,-500.0,0.00024657,2]
[391145172,1760394638789,-500.0,0.00024657,2]
[391145173,1760394638802,-500.0,0.00024657,2]
[391145174,1760394638811,-500.0,0.00024657,2]
[391145175,1760394638820,-500.0,0.00024657,2]
[391145176,1760394638829,-166.19137658,0.00024657,2]
[391145177,1760394638838,-299.228441,0.00024657,7]
[391145178,1760394638847,-526.57204262,0.00024657,2]
[391145179,1760394638856,-500.0,0.00024657,2]
[391145180,1760394638865,-478.83904082,0.00024657,2]
[391145181,1760394638874,-501.15424866,0.00024657,2]
[391145182,1760394638883,-504.05576003,0.00024657,2]
[391145183,1760394638892,-500.0,0.00024657,2]
[391145184,1760394638901,-500.0,0.00024657,2]
[391145185,1760394638910,-151.0,0.00024657,7]
[391145186,1760394638920,-500.0,0.00024657,2]
[391145187,1760394638929,-500.0,0.00024657,2]
[391145188,1760394638938,-500.0,0.00024657,2]
[391145189,1760394638947,-500.0,0.00024657,2]
[391145190,1760394639050,-514.32983106,0.00024657,2]
[391145192,1760394639083,-501.05859669,0.00024657,2]
[391145193,1760394639092,-500.0,0.00024657,2]
[391145194,1760394639102,-512.83254179,0.00024657,2]
[391145195,1760394639112,-500.0,0.00024657,2]
[391145196,1760394639122,-500.0,0.00024657,2]
[391145197,1760394639132,-500.0,0.00024657,2]
[391145198,1760394639141,-500.0,0.00024657,2]
[391145199,1760394639151,-500.0,0.00024657,2]
[391145200,1760394639160,-500.0,0.00024657,2]
[391145201,1760394639169,-500.0,0.00024657,2]
[391145202,1760394639179,-500.0,0.00024657,2]
[391145203,1760394639189,-500.0,0.00024657,2]
[391145204,1760394639198,-500.0,0.00024657,2]
[391145205,1760394639208,-500.0,0.00024657,2]
[391145206,1760394639218,-521.93674818,0.00024657,2]
[391145207,1760394639227,-500.0,0.00024657,2]
[391145208,1760394639236,-500.0,0.00024657,2]
[391145209,1760394639246,-500.0,0.00024657,2]
[391145210,1760394639255,-500.0,0.00024657,2]
[391145211,1760394639265,-500.0,0.00024657,2]
[391145212,1760394639274,-500.0,0.00024657,2]
[391145213,1760394639283,-500.0,0.00024657,2]
[391145214,1760394639293,-388.55,0.00024657,2]
[391145215,1760394639302,-500.0,0.00024657,2]
[391145216,1760394639311,-500.0,0.00024657,2]
[391145217,1760394639331,-500.0,0.00024657,2]
[391145218,1760394639341,-500.0,0.00024657,2]
[391145219,1760394639351,-500.0,0.00024657,2]
[391145220,1760394639361,-500.0,0.00024657,2]
[391145221,1760394639371,-500.0,0.00024657,2]
[391145222,1760394639380,-500.0,0.00024657,2]
[391145223,1760394639390,-205.58160833,0.00024657,2]
[391145224,1760394639400,-577.75414975,0.00024657,2]
[391145225,1760394639411,-500.0,0.00024657,2]
[391145226,1760394639420,-500.0,0.00024657,2]
[391145227,1760394639430,-151.0,0.00024657,7]
[391145228,1760394639440,-151.0,0.00024657,7]
[391145229,1760394639450,-505.94240969,0.00024657,2]
[391145230,1760394639460,-500.0,0.00024657,2]
[391145231,1760394639470,-500.0,0.00024657,2]
[391145232,1760394639480,-500.0,0.00024657,2]
[391145233,1760394639490,-462.56957165,0.00024657,2]
[391145234,1760394639500,-500.0,0.00024657,2]
[391145235,1760394639511,-500.0,0.00024657,2]
[391145236,1760394639522,-151.0,0.00024657,2]
[391145237,1760394639532,-500.0,0.00024657,2]
[391145238,1760394639542,-500.0,0.00024657,2]
[391145239,1760394639552,-500.0,0.00024657,2]
[391145240,1760394639562,-72.55023243,0.00024657,2]
[391145305,1760394640052,-472.21,0.0002268,10]
[391145308,1760394640062,-427.44976757,0.00024657,2]
[391145312,1760394640072,-151.0,0.00024657,7]
[391145315,1760394640081,-500.0,0.00024657,2]
[391145318,1760394640090,-516.72452403,0.00024657,2]
[391145321,1760394640099,-151.0,0.00024657,7]
[391145324,1760394640108,-151.0,0.00024657,7]
[391145327,1760394640118,-151.0,0.00024657,7]
[391145330,1760394640127,-151.0,0.00024657,7]
[391145333,1760394640137,-151.0,0.00024657,7]
[391145336,1760394640146,-500.0,0.00024657,2]
[391145339,1760394640155,-500.0,0.00024657,2]
[391145342,1760394640166,-151.0,0.00024657,7]
[391145345,1760394640175,-500.0,0.00024657,2]
[391145348,1760394640185,-151.0,0.00024657,7]
[391145351,1760394640194,-500.0,0.00024657,2]
[391145354,1760394640204,-500.0,0.00024657,2]
[391145357,1760394640214,-500.0,0.00024657,2]
[391145360,1760394640223,-192.28912,0.00024657,7]
[391145363,1760394640233,-500.0,0.00024657,2]
[391145366,1760394640243,-500.0,0.00024657,2]
[391145368,1760394640253,-500.0,0.00024657,2]
[391145370,1760394640263,-500.0,0.00024657,2]
[391145372,1760394640272,-556.2294767,0.00024657,2]
[391145374,1760394640281,-505.44140903,0.00024657,2]
[391145376,1760394640292,-500.0,0.00024657,2]
[391145378,1760394640301,-505.21326561,0.00024657,2]
[391145380,1760394640311,-500.0,0.00024657,2]
[391145382,1760394640320,-500.0,0.00024657,2]
[391145384,1760394640330,-500.0,0.00024657,2]
[391145386,1760394640338,-122.9410084,0.00024657,2]
[391145399,1760394640450,-377.0589916,0.00024657,2]
[391145401,1760394640460,-376.56,0.00024657,2]
[391145403,1760394640469,-527.30931715,0.00024657,2]
[391145405,1760394640478,-500.0,0.00024657,2]
[391145407,1760394640487,-500.0,0.00024657,2]
[391145409,1760394640496,-500.0,0.00024657,2]
[391145411,1760394640505,-500.0,0.00024657,2]
[391145413,1760394640514,-500.0,0.00024657,2]
[391145415,1760394640524,-200.0,0.00024657,2]
[391145417,1760394640533,-502.44332056,0.00024657,2]
[391145419,1760394640543,-500.0,0.00024657,2]
[391145420,1760394640551,-500.0,0.00024657,2]
[391145422,1760394640560,-500.0,0.00024657,2]
[391145424,1760394640569,-500.0,0.00024657,2]
[391145426,1760394640578,-500.0,0.00024657,2]
[391145427,1760394640588,-500.0,0.00024657,2]
[391145428,1760394640597,-177.01487529,0.00024657,2]
[391145429,1760394640606,-505.92933478,0.00024657,2]
[391145430,1760394640615,-505.2792961,0.00024657,2]
[391145431,1760394640624,-506.2745013,0.00024657,2]
[391145432,1760394640633,-400.0,0.00024657,2]
[391145433,1760394640643,-500.0,0.00024657,2]
[391145434,1760394640652,-501.07805904,0.00024657,2]
[391145435,1760394640665,-153.475738,0.00024657,7]
[391145436,1760394640674,-506.25237937,0.00024657,2]
[391145437,1760394640683,-501.46386575,0.00024657,2]
[391145438,1760394640692,-502.51564217,0.00024657,2]
[391145439,1760394640702,-511.47727178,0.00024657,2]
[391145440,1760394640711,-500.33581456,0.00024657,2]
[391145441,1760394640721,-500.0,0.00024657,2]
[391145442,1760394640730,-500.0,0.00024657,2]
[391145443,1760394640743,-500.0,0.00024657,2]
[391145444,1760394640752,-500.0,0.00024657,2]
[391145445,1760394640761,-500.0,0.00024657,2]
[391145446,1760394640770,-500.0,0.00024657,2]
[391145447,1760394640779,-500.0,0.00024657,2]
[391145448,1760394640789,-500.0,0.00024657,2]
[391145449,1760394640798,-500.0,0.00024657,2]
[391145450,1760394640807,-500.0,0.00024657,2]
[391145451,1760394640816,-500.0,0.00024657,2]
[391145452,1760394640825,-500.0,0.00024657,2]
[391145453,1760394640834,-500.0,0.00024657,2]
[391145454,1760394640843,-500.0,0.00024657,2]
[391145455,1760394640852,-524.75481314,0.00024657,2]
[391145456,1760394640861,-500.0,0.00024657,2]
[391145457,1760394640871,-500.0,0.00024657,2]
[391145458,1760394640880,-500.0,0.00024657,2]
[391145459,1760394640889,-500.0,0.00024657,2]
[391145460,1760394640898,-500.0,0.00024657,2]
[391145461,1760394640907,-500.0,0.00024657,2]
[391145462,1760394640918,-500.0,0.00024657,2]
[391145463,1760394640928,-359.52,0.00024657,2]
[391145464,1760394640937,-268.62328717,0.00024657,2]
[391145465,1760394640946,-500.0,0.00024657,2]
[391145466,1760394640955,-500.0,0.00024657,2]
[391145467,1760394640964,-500.0,0.00024657,2]
[391145468,1760394640973,-500.0,0.00024657,2]
[391145469,1760394640983,-500.0,0.00024657,2]
[391145470,1760394640992,-166.34053067,0.00024657,2]
[391145471,1760394641000,-502.64823746,0.00024657,2]
[391145472,1760394641010,-500.0,0.00024657,2]
[391145473,1760394641019,-504.46283906,0.00024657,2]
[391145474,1760394641029,-508.77495837,0.00024657,2]
[391145475,1760394641038,-500.0,0.00024657,2]
[391145476,1760394641048,-501.97005607,0.00024657,2]
[391145477,1760394641058,-500.0,0.00024657,2]
[391145478,1760394641067,-500.0,0.00024657,2]
[391145479,1760394641077,-500.0,0.00024657,2]
[391145480,1760394641086,-500.0,0.00024657,2]
[391145481,1760394641095,-500.0,0.00024657,2]
[391145482,1760394641104,-408.34,0.00024657,2]
[391145483,1760394641113,-500.84231446,0.00024657,2]
[391145484,1760394641123,-500.0,0.00024657,2]
[391145485,1760394641133,-501.95233668,0.00024657,2]
[391145486,1760394641142,-500.0,0.00024657,2]
[391145487,1760394641152,-441.98429682,0.00024657,2]
[391145488,1760394641161,-500.0,0.00024657,2]
[391145489,1760394641171,-500.0,0.00024657,2]
[391145490,1760394641180,-500.0,0.00024657,2]
[391145491,1760394641189,-500.0,0.00024657,2]
[391145492,1760394641199,-500.0,0.00024657,2]
[391145493,1760394641208,-500.0,0.00024657,2]
[391145494,1760394641219,-500.0,0.00024657,2]
[391145495,1760394641228,-500.0,0.00024657,2]
[391145496,1760394641239,-393.2,0.00024657,2]
[391145497,1760394641249,-500.0,0.00024657,2]
[391145498,1760394641261,-500.0,0.00024657,2]
[391145499,1760394641270,-500.0,0.00024657,2]
[391145500,1760394641279,-500.0,0.00024657,2]
[391145501,1760394641288,-500.0,0.00024657,2]
[391145502,1760394641297,-500.0,0.00024657,2]
[391145503,1760394641306,-500.0,0.00024657,2]
[391145504,1760394641315,-500.0,0.00024657,2]
[391145505,1760394641326,-500.0,0.00024657,2]
[391145506,1760394641337,-593.23079825,0.00024657,2]
[391145507,1760394641346,-501.22123307,0.00024657,2]
[391145508,1760394641355,-151.0,0.00024657,7]
[391145509,1760394641364,-151.0,0.00024657,7]
[391145510,1760394641373,-500.0,0.00024657,2]
[391145511,1760394641382,-508.04707254,0.00024657,2]
[391145512,1760394641391,-500.0,0.00024657,2]
[391145513,1760394641400,-500.0,0.00024657,2]
[391145514,1760394641409,-500.0,0.00024657,2]
[391145515,1760394641419,-500.0,0.00024657,2]
[391145516,1760394641428,-500.0,0.00024657,2]
[391145517,1760394641437,-500.0,0.00024657,2]
[391145518,1760394641446,-500.0,0.00024657,2]
[391145519,1760394641455,-500.0,0.00024657,2]
[391145520,1760394641465,-384.53746575,0.00024657,2]
[391145521,1760394641474,-500.0,0.00024657,2]
[391145522,1760394641483,-500.0,0.00024657,2]
[391145523,1760394641492,-500.0,0.00024657,2]
[391145524,1760394641502,-500.0,0.00024657,2]
[391145525,1760394641511,-500.0,0.00024657,2]
[391145526,1760394641520,-362.08356226,0.00024657,2]
[391145527,1760394641547,-177.93923353,0.00024657,2]
[391145528,1760394641556,-500.0,0.00024657,2]
[391145529,1760394641566,-501.57168739,0.00024657,2]
[391145530,1760394641575,-500.0,0.00024657,2]
[391145531,1760394641584,-500.0,0.00024657,2]
[391145532,1760394641593,-500.0,0.00024657,2]
[391145533,1760394641602,-500.0,0.00024657,2]
[391145534,1760394641611,-500.0,0.00024657,2]
[391145535,1760394641620,-500.0,0.00024657,2]
[391145536,1760394641629,-261.43327453,0.00024657,2]
[391145537,1760394641640,-500.0,0.00024657,2]
[391145538,1760394641650,-500.0,0.00024657,2]
[391145539,1760394641660,-194.31709119,0.00024657,2]
[391145540,1760394641670,-500.0,0.00024657,2]
[391145541,1760394641679,-500.0,0.00024657,2]
[391145542,1760394641688,-500.0,0.00024657,2]
[391145543,1760394641697,-500.0,0.00024657,2]
[391145544,1760394641708,-500.0,0.00024657,2]
[391145545,1760394641717,-213.3086088,0.00024657,2]
[391145546,1760394641726,-502.02960208,0.00024657,2]
[391145547,1760394641736,-500.0,0.00024657,2]
[391145548,1760394641745,-500.0,0.00024657,2]
[391145549,1760394641754,-507.28799096,0.00024657,2]
[391145550,1760394641763,-1111.2,0.00024657,2]
[391145551,1760394641772,-1111.2,0.00024657,2]
[391145552,1760394641782,-1111.2,0.00024657,2]
[391145553,1760394641791,-1111.2,0.00024657,2]
[391145554,1760394641800,-1111.2,0.00024657,2]
[391145555,1760394641809,-1111.2,0.00024657,2]
[391145556,1760394641927,-1111.2,0.00024657,2]
[391145557,1760394641937,-1111.2,0.00024657,2]
[391145558,1760394641946,-1111.2,0.00024657,2]
[391145559,1760394641958,-1111.2,0.00024657,2]
[391145560,1760394641978,-151.0,0.00024657,7]
[391145561,1760394641998,-1111.2,0.00024657,2]
[391145562,1760394642019,-151.0,0.00024657,7]
[391145563,1760394642031,-1111.2,0.00024657,2]
[391145564,1760394642040,-1111.2,0.00024657,2]
[391145565,1760394642051,-1111.2,0.00024657,2]
[391145566,1760394642061,-1111.2,0.00024657,2]
[391145567,1760394642070,-1111.2,0.00024657,2]
[391145568,1760394642080,-469.44620571,0.00024657,2]
[391145575,1760394643699,-831.08426691,0.00024557,2]
[391145576,1760394643710,-641.75379429,0.00024657,2]
[391145577,1760394643720,-1111.2,0.00024657,2]
[391145578,1760394643731,-1111.2,0.00024657,2]
[391145579,1760394643742,-1111.2,0.00024657,2]
[391145580,1760394643755,-1111.2,0.00024657,2]
[391145581,1760394643764,-1111.2,0.00024657,2]
[391145582,1760394643774,-1111.2,0.00024657,2]
[391145583,1760394643783,-1111.28308722,0.00024657,2]
[391145584,1760394643794,-154.024293,0.00024657,7]
[391145585,1760394643805,-353.09826567,0.00024657,2]
[391145586,1760394643814,-500.0,0.00024657,2]
[391145587,1760394643823,-103.16085891,0.00024657,2]
[391145591,1760394643915,-398.49565196,0.00024657,2]
[391145592,1760394643924,-500.0,0.00024657,2]
[391145593,1760394643933,-500.0,0.00024657,2]
[391145594,1760394643942,-482.34133332,0.00024657,2]
[391145595,1760394643953,-17.65866668,0.00024657,2]
[391145596,1760394643963,-500.0,0.00024657,2]
[391145597,1760394643972,-500.0,0.00024657,2]
[391145598,1760394643981,-500.0,0.00024657,2]
[391145599,1760394643990,-507.72946808,0.00024657,2]
[391145600,1760394643999,-500.0,0.00024657,2]
[391145601,1760394644008,-500.0,0.00024657,2]
[391145602,1760394644017,-500.0,0.00024657,2]
[391145603,1760394644027,-500.0,0.00024657,2]
[391145604,1760394644036,-500.0,0.00024657,2]
[391145605,1760394644045,-500.0,0.00024657,2]
[391145606,1760394644054,-500.0,0.00024657,2]
[391145607,1760394644064,-500.0,0.00024657,2]
[391145608,1760394644074,-500.0,0.00024657,2]
[391145609,1760394644083,-500.0,0.00024657,2]
[391145610,1760394644093,-500.0,0.00024657,2]
[391145611,1760394644102,-562.59661478,0.00024657,2]
[391145612,1760394644111,-500.0,0.00024657,2]
[391145613,1760394644120,-500.0,0.00024657,2]
[391145614,1760394644130,-500.0,0.00024657,2]
[391145615,1760394644139,-500.0,0.00024657,2]
[391145616,1760394644148,-500.0,0.00024657,2]
[391145617,1760394644157,-500.0,0.00024657,2]
[391145618,1760394644168,-500.0,0.00024657,2]
[391145619,1760394644177,-500.0,0.00024657,2]
[391145620,1760394644186,-500.0,0.00024657,2]
[391145621,1760394644195,-500.0,0.00024657,2]
[391145622,1760394644205,-500.0,0.00024657,2]
[391145623,1760394644214,-500.0,0.00024657,2]
[391145624,1760394644223,-500.0,0.00024657,2]
[391145625,1760394644232,-253.08143906,0.00024657,2]
[391145626,1760394644241,-506.96995662,0.00024657,2]
[391145627,1760394644251,-500.0,0.00024657,2]
[391145628,1760394644260,-500.0,0.00024657,2]
[391145629,1760394644269,-500.0,0.00024657,2]
[391145630,1760394644278,-500.0,0.00024657,2]
[391145631,1760394644287,-500.0,0.00024657,2]
[391145632,1760394644297,-500.0,0.00024657,2]
[391145633,1760394644306,-739.01,0.00024657,2]
[391145634,1760394644315,-500.0,0.00024657,2]
[391145635,1760394644325,-739.01,0.00024657,2]
[391145636,1760394644334,-500.0,0.00024657,2]
[391145637,1760394644343,-739.01,0.00024657,2]
[391145638,1760394644352,-500.0,0.00024657,2]
[391145639,1760394644361,-739.01,0.00024657,2]
[391145640,1760394644369,-70.51821275,0.00024657,2]
[391145641,1760394644384,-429.48178725,0.00024657,2]
[391145642,1760394644393,-739.01,0.00024657,2]
[391145643,1760394644402,-500.0,0.00024657,2]
[391145644,1760394644411,-739.01,0.00024657,2]
[391145645,1760394644421,-500.0,0.00024657,2]
[391145646,1760394644430,-500.0,0.00024657,2]
[391145647,1760394644439,-739.01,0.00024657,2]
[391145648,1760394644449,-500.0,0.00024657,2]
[391145649,1760394644458,-739.01,0.00024657,2]
[391145650,1760394644467,-500.0,0.00024657,2]
[391145651,1760394644476,-739.01,0.00024657,2]
[391145652,1760394644485,-500.0,0.00024657,2]
[391145653,1760394644494,-739.01,0.00024657,2]
[391145654,1760394644503,-639.8,0.00024657,2]
[391145655,1760394644513,-739.01,0.00024657,2]
[391145656,1760394644523,-739.01,0.00024657,2]
[391145657,1760394644533,-739.01,0.00024657,2]
[391145658,1760394644543,-739.01,0.00024657,2]
[391145659,1760394644554,-739.01,0.00024657,2]
[391145660,1760394644564,-739.01,0.00024657,2]
[391145661,1760394644574,-739.01,0.00024657,2]
[391145662,1760394644583,-500.0,0.00024657,2]
[391145663,1760394644593,-739.01,0.00024657,2]
[391145664,1760394644602,-500.0,0.00024657,2]
[391145665,1760394644611,-739.01,0.00024657,2]
[391145666,1760394644621,-500.0,0.00024657,2]
[391145667,1760394644630,-739.01,0.00024657,2]
[391145668,1760394644641,-500.0,0.00024657,2]
[391145669,1760394644651,-739.01,0.00024657,2]
[391145670,1760394644666,-500.0,0.00024657,2]
[391145671,1760394644678,-739.01,0.00024657,2]
[391145672,1760394644687,-500.0,0.00024657,2]
[391145673,1760394644696,-739.01,0.00024657,2]
[391145674,1760394644707,-500.0,0.00024657,2]
[391145675,1760394644717,-739.2335555,0.00024657,2]
[391145676,1760394644727,-513.96377609,0.00024657,2]
[391145677,1760394644738,-1055.64,0.00024657,2]
[391145678,1760394644752,-1055.64,0.00024657,2]
[391145679,1760394644763,-1055.64,0.00024657,2]
[391145680,1760394644773,-1055.64,0.00024657,2]
[391145681,1760394644783,-1055.64,0.00024657,2]
[391145682,1760394644792,-1055.64,0.00024657,2]
[391145683,1760394644801,-1055.64,0.00024657,2]
[391145684,1760394644812,-1055.64,0.00024657,2]
[391145685,1760394644821,-500.0,0.00024657,2]
[391145686,1760394644832,-1055.64,0.00024657,2]
[391145687,1760394644844,-500.0,0.00024657,2]
[391145688,1760394644855,-1055.64,0.00024657,2]
[391145689,1760394644865,-500.0,0.00024657,2]
[391145690,1760394644875,-1055.64,0.00024657,2]
[391145691,1760394644887,-500.0,0.00024657,2]
[391145692,1760394644896,-500.0,0.00024657,2]
[391145693,1760394644906,-1055.64,0.00024657,2]
[391145694,1760394644916,-500.0,0.00024657,2]
[391145695,1760394644925,-1055.64,0.00024657,2]
[391145696,1760394644934,-178.47014105,0.00024657,2]
[391145697,1760394644943,-1055.64,0.00024657,2]
[391145698,1760394644953,-1055.64,0.00024657,2]
[391145699,1760394644962,-1055.64,0.00024657,2]
[391145700,1760394644972,-1055.64,0.00024657,2]
[391145701,1760394644984,-1055.64,0.00024657,2]
[391145702,1760394644994,-500.0,0.00024657,2]
[391145703,1760394645004,-1055.64,0.00024657,2]
[391145704,1760394645014,-636.99528702,0.00024657,2]
[391145705,1760394645025,-1055.64,0.00024657,2]
[391145706,1760394645035,-1055.64,0.00024657,2]
[391145707,1760394645045,-1055.64,0.00024657,2]
[391145708,1760394645055,-1055.64,0.00024657,2]
[391145709,1760394645065,-1055.65138828,0.00024657,2]
[391145710,1760394645075,-500.0,0.00024657,2]
[391145711,1760394645087,-500.0,0.00024657,2]